bitfinex-derivatives/quotes_SOLF0:USTF0_20241218
["timestamp","ask_amount","ask_price","bid_price","bid_amount"]
[1734504070055,2.4,214.49,214.4,16.21]
[1734504070452,9.19515858,214.54,214.41,1.5279]
[1734504070657,2.4,214.51,214.41,1.5279]
[1734504070857,2.4,214.51,214.42,3.1206]
[1734504071053,2.4,214.53,214.42,3.1206]
[1734504071255,1.4629,214.57,214.43,9.19515858]
[1734504071450,5.4946101,214.57,214.46,9.19515858]
[1734504071655,2.4,214.56,214.46,9.19515858]
[1734504072053,2.3305,214.53,214.46,9.19515858]
[1734504072656,2.3304,214.55,214.49,9.19515858]
[1734504072857,2.3304,214.55,214.5,1.563]
[1734504073257,2.3305,214.54,214.5,1.563]
[1734504073450,2.4,214.59,214.5,1.563]
[1734504073856,2.3306,214.53,214.5,1.563]
[1734504074756,8.00044767,214.59,214.5,1.563]
[1734504075356,2.4,214.58,214.5,1.563]
[1734504075657,66.04736475,214.65,214.52,9.19515858]
[1734504075855,2.4,214.64,214.51,5.4529]
[1734504076752,5.60996082,214.62,214.51,5.4529]
[1734504076948,2.3301,214.57,214.51,5.3835]
[1734504077150,2.3301,214.57,214.52,2.4]
[1734504078260,2.33,214.58,214.52,4.7306]
[1734504079455,2.3301,214.57,214.52,2.4]
[1734504079662,9.19515858,214.62,214.51,3.0529]
[1734504079960,9.19515858,214.62,214.51,1.5627]
[1734504080266,9.19515858,214.59,214.5,1.563]
[1734504080460,9.19515858,214.56,214.43,9.19515858]
[1734504080661,2.4,214.56,214.47,9.19515858]
[1734504081162,2.4,214.59,214.49,2.3309]
[1734504081556,2.3302,214.56,214.51,2.3307]
[1734504082361,2.4,214.59,214.5,2.4]
[1734504083355,2.3303,214.55,214.5,2.4]
[1734504084059,2.3303,214.55,214.5,6.2494]
[1734504084260,2.4,214.59,214.5,6.2494]
[1734504084261,2.3302,214.57,214.5,3.9186]
[1734504084660,2.4,214.59,214.5,3.9186]
[1734504085158,9.19515858,214.58,214.45,2.4]
[1734504085364,9.19515858,214.58,214.5,7.62]
[1734504085764,9.19515858,214.58,214.51,1.3893]
[1734504085961,9.19515858,214.55,214.51,1.3893]
[1734504086173,9.19515858,214.52,214.51,1.3893]
[1734504086366,11.59515858,214.52,214.5,7.62]
[1734504086972,2.3307,214.51,214.5,7.62]
[1734504088466,2.3306,214.53,214.5,7.62]
[1734504088669,2.4,214.58,214.5,7.62]
[1734504089873,5.65558404,214.62,214.51,2.4]
[1734504090075,5.65558404,214.62,214.51,6.9357]
[1734504091074,5.65558404,214.62,214.51,10.6557]
[1734504091275,2.4,214.63,214.51,10.6557]
[1734504091669,2.33,214.58,214.52,2.3305]
[1734504092074,2.33,214.58,214.51,10.6557]
[1734504093472,2.33,214.58,214.53,2.3305]
[1734504094069,9.19515858,214.64,214.55,2.3302]
[1734504094070,2.3299,214.6,214.55,2.3302]
[1734504094575,2.4,214.63,214.55,2.3302]
[1734504095678,2.3301,214.57,214.53,2.3304]
[1734504095973,2.3301,214.57,214.51,25.48613149]
[1734504095974,2.4,214.63,214.51,23.08613149]
[1734504096177,2.3303,214.55,214.51,23.08613149]
[1734504096380,2.4,214.63,214.51,23.08613149]
[1734504097478,9.19515858,214.61,214.51,8.3464]
[1734504098582,9.19515858,214.58,214.51,6.98]
[1734504098779,2.42,214.57,214.51,6.98]
[1734504099982,5.87754525,214.56,214.51,6.98]
[1734504100173,2.3306,214.52,214.51,6.98]
[1734504109084,10.62814525,214.52,214.51,6.98]
[1734504110487,10.62814525,214.52,214.51,11.5]
[1734504114788,10.62814525,214.52,214.51,23.98]
[1734504115284,15.76690041,214.52,214.41,1.5068]
[1734504115485,2.3317,214.42,214.41,1.5068]
[1734504116988,2.42,214.47,214.41,1.5068]
[1734504117185,2.42,214.47,214.45,5.87754525]
[1734504117586,2.42,214.47,214.37,6.98640725]
[1734504117792,2.42,214.47,214.42,5.87754525]
[1734504118486,2.42,214.47,214.39,2.3319]
[1734504118795,2.42,214.48,214.43,5.87754525]
[1734504118992,2.3313,214.46,214.43,5.87754525]
[1734504119195,2.3313,214.46,214.45,5.87754525]
[1734504120094,2.3314,214.45,214.44,5.87754525]
[1734504121488,2.3313,214.46,214.44,5.87754525]
[1734504121692,2.42,214.5,214.44,5.87754525]
[1734504121884,2.42,214.5,214.48,5.87754525]
[1734504122189,0.9544,214.65,214.48,5.87754525]
[1734504122392,5.87754525,214.6,214.52,5.87754525]
[1734504122593,5.87754525,214.58,214.37,8.58930725]
[1734504122797,5.87754525,214.54,214.46,1.5562]
[1734504123099,8.29754525,214.54,214.46,7.43374525]
[1734504123292,2.3307,214.52,214.46,7.43374525]
[1734504123490,8.29754525,214.54,214.46,7.43374525]
[1734504124391,2.3307,214.52,214.46,7.43374525]
[1734504124595,8.29754525,214.54,214.46,7.43374525]
[1734504125494,8.29754525,214.54,214.46,9.76504525]
[1734504125687,2.52,214.58,214.52,5.87754525]
[1734504126088,2.3305,214.53,214.52,5.87754525]
[1734504127198,2.3305,214.53,214.51,3.72]
[1734504127496,2.3306,214.52,214.51,3.72]
[1734504130395,2.52,214.52,214.38,5.87754525]
[1734504130592,5.87754525,214.46,214.38,7.44444525]
[1734504130794,2.52,214.45,214.38,7.44444525]
[1734504131296,2.3316,214.43,214.4,5.87754525]
[1734504131598,8.39754525,214.51,214.42,5.87754525]
[1734504131802,2.52,214.5,214.44,5.87754525]
[1734504132193,2.3314,214.45,214.42,5.87754525]
[1734504132399,2.52,214.5,214.42,5.87754525]
[1734504132400,5.87754525,214.49,214.42,5.87754525]
[1734504132998,2.3316,214.44,214.42,5.87754525]
[1734504133202,5.87754525,214.53,214.42,5.87754525]
[1734504133397,5.87754525,214.53,214.38,1.5669]
[1734504133398,2.52,214.52,214.46,5.87754525]
[1734504133595,2.331,214.49,214.46,5.87754525]
[1734504133997,2.52,214.52,214.46,5.87754525]
[1734504134398,2.52,214.52,214.48,5.87754525]
[1734504134803,2.3309,214.5,214.48,5.87754525]
[1734504135308,2.52,214.53,214.48,5.87754525]
[1734504135602,2.52,214.53,214.46,7.41964525]
[1734504135807,2.3307,214.51,214.46,7.41964525]
[1734504136008,2.52,214.53,214.46,1.5421]
[1734504136807,2.331,214.49,214.46,1.5421]
[1734504137613,2.52,214.53,214.43,10.65980408]
[1734504137614,11.70590408,214.53,214.43,1.4739]
[1734504138614,7.45867418,214.52,214.44,3.73]
[1734504138917,9.18590408,214.5,214.44,3.73]
[1734504139111,2.3314,214.45,214.44,3.73]
[1734504139417,4.8514,214.45,214.44,3.73]
[1734504144526,4.8514,214.45,214.29,9.18590408]
[1734504144527,9.18590408,214.45,214.29,9.18590408]
[1734504144817,2.3318,214.42,214.33,2.3327]
[1734504145013,2.52,214.44,214.32,9.18590408]
[1734504145210,2.52,214.44,214.35,9.18590408]
[1734504145718,2.3321,214.39,214.35,11.51830408]
[1734504147016,2.3321,214.39,214.36,1.4572]
[1734504147319,2.52,214.44,214.36,1.4572]
[1734504147524,2.52,214.45,214.38,9.18590408]
[1734504147710,2.52,214.48,214.38,9.18590408]
[1734504147917,8.04403172,214.49,214.38,9.18590408]
[1734504148216,7.45304096,214.53,214.41,9.18590408]
[1734504148525,2.3311,214.48,214.43,2.3316]
[1734504148716,2.3311,214.48,214.44,10.64310408]
[1734504149616,8.08842988,214.52,214.44,1.4572]
[1734504151215,8.08842988,214.52,214.41,2.3318]
[1734504151419,8.08842988,214.52,214.38,9.18590408]
[1734504151614,2.3314,214.45,214.4,2.3319]
[1734504151817,8.08842988,214.52,214.41,1.5701]
[1734504153019,2.3315,214.45,214.41,1.5701]
[1734504153416,8.08842988,214.52,214.41,1.5701]
[1734504153623,9.18590408,214.51,214.41,1.5701]
[1734504154727,9.18590408,214.51,214.39,1.4599]
[1734504155019,9.18590408,214.45,214.37,1.5081]
[1734504155223,2.52,214.44,214.37,1.5081]
[1734504155423,9.18590408,214.42,214.26,9.18590408]
[1734504155619,9.18590408,214.42,214.3,1.4923]
[1734504155819,2.3328,214.32,214.3,1.4923]
[1734504156123,2.5,214.35,214.3,1.4923]
[1734504156517,9.18590408,214.42,214.3,1.4923]
[1734504156725,2.5,214.41,214.3,1.4923]
[1734504157424,9.18590408,214.39,214.26,12.20390408]
[1734504157827,9.18590408,214.36,214.26,3.018]
[1734504158123,2.5,214.35,214.26,3.018]
[1734504158326,2.5,214.34,214.26,3.018]
[1734504158528,2.5,214.33,214.26,3.018]
[1734504158726,2.5,214.32,214.26,3.018]
[1734504159726,4.8329,214.32,214.26,5.3514]
[1734504159922,4.8329,214.32,214.28,9.18590408]
[1734504161932,2.3329,214.31,214.28,9.18590408]
[1734504162331,5.73893556,214.37,214.29,2.3331]
[1734504162530,2.3327,214.34,214.28,9.18590408]
[1734504162930,2.5,214.36,214.28,9.18590408]
[1734504163131,2.3327,214.33,214.29,2.3331]
[1734504163734,64.85650396,214.41,214.28,9.18590408]
[1734504163930,2.5,214.4,214.28,9.18590408]
[1734504164232,5.63868543,214.38,214.28,9.18590408]
[1734504164430,2.5,214.37,214.28,9.18590408]
[1734504164630,2.5,214.37,214.31,9.18590408]
[1734504165427,2.5,214.37,214.28,9.18590408]
[1734504166033,2.3327,214.34,214.29,2.3331]
[1734504166331,2.5,214.37,214.29,2.3331]
[1734504166632,2.3328,214.32,214.28,9.18590408]
[1734504166939,2.3328,214.32,214.28,11.51910408]
[1734504167735,1e-08,214.24,214.21,7.94699226]
[1734504168031,2.5,214.32,214.23,9.18590408]
[1734504168231,2.5,214.32,214.26,9.18590408]
[1734504168433,2.333,214.3,214.26,11.51930408]
[1734504168833,2.5,214.33,214.26,9.18590408]
[1734504169031,2.5,214.33,214.22,3.0466]
[1734504169232,2.5,214.33,214.24,9.18590408]
[1734504170434,2.3332,214.28,214.24,11.51950408]
[1734504172637,2.3334,214.27,214.24,11.51950408]
[1734504173037,2.3336,214.25,214.24,9.18590408]
[1734504173241,2.3336,214.25,214.22,3.0466]
[1734504173440,2.5,214.3,214.22,3.0466]
[1734504174235,2.3334,214.27,214.24,2.3336]
[1734504174436,2.5,214.29,214.22,3.0466]
[1734504175534,2.3335,214.26,214.22,5.3805]
[1734504175842,2.5,214.29,214.22,3.0466]
[1734504176639,2.334,214.21,214.2,1.4544]
[1734504177036,2.334,214.21,214.2,5.43]
[1734504178039,2.3339,214.23,214.2,5.43]
[1734504178243,2.5,214.25,214.2,5.43]
[1734504178439,2.5,214.24,214.2,5.43]
[1734504178643,2.5,214.23,214.2,5.43]
[1734504178837,9.18590408,214.32,214.2,5.43]
[1734504179141,2.5,214.31,214.21,2.334]
[1734504180145,2.3336,214.25,214.21,2.334]
[1734504180646,2.3337,214.24,214.21,2.334]
[1734504181146,4.8332,214.29,214.25,2.3335]
[1734504181334,2.5,214.29,214.2,16.09690408]
[1734504181745,2.3334,214.27,214.2,16.09690408]
[1734504182047,2.5,214.29,214.2,16.09690408]
[1734504182237,9.18590408,214.35,214.2,16.09690408]
[1734504182438,2.5,214.34,214.23,9.18590408]
[1734504183145,8.10530336,214.34,214.25,2.3335]
[1734504183646,2.3332,214.29,214.25,2.3335]
[1734504185643,9.18590408,214.4,214.26,9.18590408]
[1734504185842,9.18590408,214.4,214.27,4.0721]
[1734504186039,9.18590408,214.31,214.2,5.43]
[1734504186347,2.5,214.3,214.2,5.43]
[1734504186640,2.3335,214.26,214.2,5.43]
[1734504186844,9.18590408,214.31,214.2,5.43]
[1734504187043,2.5,214.3,214.2,5.43]
[1734504187845,2.3336,214.25,214.2,5.43]
[1734504188045,2.5,214.3,214.2,5.43]
[1734504188446,2.5,214.3,214.2,7.93]
[1734504189442,2.3333,214.28,214.23,2.3337]
[1734504190147,2.3333,214.28,214.24,2.3336]
[1734504190646,2.5,214.34,214.21,9.18590408]
[1734504190948,2.5,214.35,214.21,10.71850408]
[1734504191148,2.5,214.35,214.27,2.3333]
[1734504191350,9.18590408,214.34,214.21,10.71850408]
[1734504191547,9.18590408,214.34,214.21,1.5326]
[1734504192345,9.18590408,214.31,214.21,1.5326]
[1734504192549,2.5,214.3,214.2,5.43]
[1734504193251,2.3338,214.23,214.2,5.43]
[1734504193646,2.334,214.21,214.2,5.43]
[1734504194746,2.334,214.21,214.2,3.09630001]
[1734504194950,8.22769102,214.21,214.2,0.75950001]
[1734504195452,8.39369102,214.21,214.06,5.89369102]
[1734504195754,8.23655846,214.21,214.06,5.89369102]
[1734504195946,8.23655846,214.21,214.05,1.5204]
[1734504195947,2.3349,214.13,214.08,5.89369102]
[1734504196245,9.21739737,214.19,214.08,2.3354]
[1734504196553,2.3345,214.17,214.07,2.5]
[1734504196752,2.3345,214.17,214.08,2.5]
[1734504197051,2.3346,214.16,214.08,2.5]
[1734504197447,2.5,214.19,214.08,2.5]
[1734504197646,2.3343,214.19,214.1,9.21739737]
[1734504198156,9.21739737,214.22,214.13,2.3349]
[1734504198346,2.3343,214.18,214.1,9.21739737]
[1734504198546,2.5,214.18,214.05,1.5204]
[1734504198746,9.21739737,214.16,214.05,1.5204]
[1734504198946,9.21739737,214.13,214.05,1.5204]
[1734504199152,2.5,214.12,214.06,3.73]
[1734504200248,11.71739737,214.16,214.06,3.73]
[1734504200854,2.5,214.16,214.06,3.73]
[1734504201855,2.3349,214.13,214.07,2.3355]
[1734504202054,2.5,214.16,214.06,3.73]
[1734504202649,2.3351,214.12,214.07,2.3355]
[1734504202858,2.3351,214.12,214.06,3.73]
[1734504203058,2.5,214.16,214.06,12.94739737]
[1734504203558,9.21739737,214.19,214.06,12.94739737]
[1734504203756,5.7116059,214.22,214.09,9.21739737]
[1734504203757,2.5,214.2,214.09,9.21739737]
[1734504203956,2.5,214.2,214.1,1.4834]
[1734504204358,2.5,214.2,214.11,1.4656]
[1734504204553,2.5,214.2,214.13,2.3349]
[1734504204554,2.3344,214.17,214.13,2.3349]
[1734504205060,2.3343,214.19,214.14,2.3348]
[1734504205258,2.5,214.23,214.11,1.4656]
[1734504205561,2.5,214.23,214.12,10.71299737]
[1734504205753,2.5,214.23,214.13,2.5]
[1734504206062,2.3341,214.2,214.15,2.3346]
[1734504206457,2.3345,214.17,214.13,4.8348]
[1734504207063,5.69562779,214.24,214.13,2.5]
[1734504207259,9.21739737,214.28,214.15,9.21739737]
[1734504207463,4.664,214.4,214.13,2.5]
[1734504207464,24.24283791,214.38,214.18,9.21739737]
[1734504207656,5.52347056,214.31,214.19,2.5]
[1734504207857,5.52347056,214.31,214.2,3.0387]
[1734504208059,8.02347056,214.31,214.2,3.0387]
[1734504208462,2.3335,214.26,214.21,2.3339]
[1734504208658,9.21739737,214.29,214.2,3.0387]
[1734504208859,9.21739737,214.29,214.15,2.5]
[1734504209063,2.3342,214.2,214.15,2.5]
[1734504209264,9.21739737,214.26,214.15,2.5]
[1734504209463,2.5,214.24,214.15,2.5]
[1734504209664,2.5,214.24,214.16,2.3345]
[1734504210065,2.3341,214.21,214.16,2.3345]
[1734504210368,2.5,214.24,214.16,2.3345]
[1734504210663,2.334,214.22,214.15,4.8346]
[1734504210853,2.5,214.24,214.13,3.0387]
[1734504211057,9.21739737,214.23,214.13,5.3735]
[1734504211262,2.3344,214.17,214.13,5.3735]
[1734504211757,2.3347,214.15,214.11,2.335]
[1734504212366,2.3345,214.17,214.12,2.335]
[1734504212559,2.5,214.19,214.09,9.21739737]
[1734504212957,2.3346,214.16,214.11,2.335]
[1734504213155,2.3346,214.16,214.09,9.21739737]
[1734504213566,2.3346,214.16,214.11,2.335]
[1734504214567,2.3346,214.16,214.12,2.335]
[1734504215260,2.3344,214.18,214.13,2.3349]
[1734504215466,2.52,214.22,214.09,9.21739737]
[1734504215665,2.52,214.22,214.08,2.52]
[1734504215864,9.21739737,214.2,214.09,2.3353]
[1734504216469,9.21739737,214.2,214.07,3.1338]
[1734504216667,2.3351,214.11,214.07,5.4693]
[1734504216870,2.52,214.15,214.09,0.85]
[1734504217165,2.52,214.14,214.09,0.85]
[1734504217371,2.52,214.16,214.09,0.85]
[1734504217675,4.8546,214.16,214.11,2.335]
[1734504217863,2.52,214.16,214.11,2.335]
[1734504218066,2.52,214.16,214.09,0.85]
[1734504218770,2.335,214.12,214.09,0.85]
[1734504219169,2.52,214.16,214.09,0.85]
[1734504220474,2.3351,214.12,214.09,0.85]
[1734504221174,2.52,214.16,214.09,0.85]
[1734504221369,2.3351,214.11,214.09,0.85]
[1734504222772,2.52,214.16,214.09,0.85]
[1734504223370,2.3352,214.1,214.09,0.85]
[1734504224574,4.8552,214.1,214.09,0.85]
[1734504224871,2.3355,214.07,214.06,3.73]
[1734504226769,2.3355,214.07,214.06,1.3938]
[1734504227274,4.8555,214.07,214.06,1.3938]
[1734504227875,2.3355,214.07,214.06,1.3938]
[1734504228270,2.3355,214.07,214.06,5.1238]
[1734504229078,2.3355,214.07,214.06,3.73]
[1734504229279,4.8555,214.07,214.06,3.73]
[1734504229978,2.3355,214.07,214.06,3.73]
[1734504231082,2.52,214.11,214.06,3.73]
[1734504231883,2.3352,214.1,214.06,3.73]
[1734504232282,2.52,214.11,214.06,3.73]
[1734504234482,2.3354,214.09,214.06,6.0656]
[1734504234986,11.73739737,214.16,214.06,4.58]
[1734504235287,2.3349,214.13,214.1,2.3352]
[1734504235488,64.92569182,214.17,214.06,13.79739737]
[1734504235686,2.3345,214.16,214.09,2.3353]
[1734504235883,2.3345,214.16,214.06,13.79739737]
[1734504236089,9.21739737,214.22,214.09,9.21739737]
[1734504236385,2.3343,214.19,214.1,2.52]
[1734504236786,2.3343,214.19,214.11,1.5353]
[1734504237190,2.3343,214.19,214.11,3.0977]
[1734504237384,2.52,214.21,214.11,3.0977]
[1734504237385,2.3343,214.18,214.11,3.0977]
[1734504238291,9.21739737,214.19,214.11,3.0977]
[1734504238492,9.21739737,214.19,214.11,1.5353]
[1734504238694,2.3348,214.14,214.11,1.5353]
[1734504238895,9.21739737,214.19,214.11,1.5353]
[1734504239190,2.52,214.21,214.08,2.3354]
[1734504239191,9.21739737,214.16,214.08,2.3354]
[1734504239488,9.21739737,214.13,214.06,4.58]
[1734504239693,11.73739737,214.13,214.06,4.58]
[1734504239890,2.3354,214.09,214.06,4.58]
[1734504240286,2.3354,214.08,214.06,4.58]
[1734504240693,11.73739737,214.13,214.06,4.58]
[1734504240993,2.3354,214.09,214.06,4.58]
[1734504241689,9.21739737,214.16,214.06,4.58]
[1734504242390,23.21739737,214.28,214.07,9.21739737]
[1734504242391,9.21739737,214.19,214.07,9.21739737]
[1734504242692,2.3343,214.18,214.1,2.3351]
[1734504242892,2.3343,214.18,214.07,9.21739737]
[1734504243090,2.52,214.22,214.1,9.21739737]
[1734504243292,2.52,214.22,214.1,11.73739737]
[1734504243497,2.3341,214.2,214.1,11.73739737]
[1734504243896,2.3341,214.2,214.15,2.3346]
[1734504244098,2.52,214.22,214.15,2.3346]
[1734504244291,2.3343,214.19,214.15,2.3346]
[1734504244494,2.3343,214.19,214.16,2.3345]
[1734504245092,2.52,214.22,214.16,2.3345]
[1734504245894,2.52,214.22,214.14,2.3347]
[1734504246299,2.52,214.22,214.15,1.4798]
[1734504246499,2.3341,214.2,214.16,2.3345]
[1734504247801,2.52,214.22,214.15,2.3346]
[1734504247802,2.3342,214.19,214.15,2.3346]
[1734504248198,2.52,214.22,214.1,9.21739737]
[1734504248399,2.52,214.22,214.13,2.3348]
[1734504248799,2.52,214.22,214.1,9.21739737]
[1734504248800,2.3343,214.19,214.11,2.335]
[1734504249101,9.21739737,214.2,214.07,16.39679737]
[1734504249494,2.52,214.22,214.07,16.39679737]
[1734504249897,9.21739737,214.2,214.07,13.83679737]
[1734504250400,9.21739737,214.2,214.06,3.73]
[1734504250602,2.52,214.22,214.07,16.50739737]
[1734504250803,2.52,214.22,214.1,9.21739737]
[1734504251002,2.52,214.22,214.11,2.9534]
[1734504251299,2.3342,214.19,214.15,2.3346]
[1734504251603,2.3342,214.19,214.11,4.4674]
[1734504251808,2.52,214.22,214.11,4.4674]
[1734504252003,2.3342,214.19,214.15,2.3346]
[1734504252203,2.56,214.24,214.13,9.21739737]
[1734504253204,2.334,214.22,214.18,2.3342]
[1734504253511,2.56,214.24,214.12,9.21739737]
[1734504255510,2.3341,214.21,214.17,2.3344]
[1734504255906,2.3341,214.21,214.18,2.3343]
[1734504256406,2.334,214.21,214.18,2.3343]
[1734504256805,2.3341,214.2,214.17,2.3344]
[1734504257005,2.56,214.24,214.11,4.4674]
[1734504257212,2.56,214.24,214.15,2.3346]
[1734504257508,2.3341,214.21,214.12,2.56]
[1734504257709,2.56,214.24,214.13,9.21739737]
[1734504257912,2.334,214.22,214.16,9.21739737]
[1734504258113,2.334,214.22,214.12,2.56]
[1734504258307,2.334,214.22,214.17,2.3343]
[1734504258506,2.334,214.22,214.13,9.21739737]
[1734504259008,2.56,214.25,214.19,2.3342]
[1734504260209,59.00152229,214.3,214.22,2.3339]
[1734504260411,2.56,214.29,214.19,9.21739737]
[1734504260606,2.56,214.29,214.2,4.498]
[1734504260813,2.3332,214.28,214.23,2.3337]
[1734504261012,2.3332,214.28,214.2,4.498]
[1734504261312,2.56,214.29,214.2,4.498]
[1734504261707,5.56152229,214.3,214.2,4.498]
[1734504261907,2.56,214.29,214.2,4.498]
[1734504262413,2.3334,214.27,214.22,2.3339]
[1734504264009,2.3334,214.27,214.21,2.334]
[1734504264317,2.3336,214.25,214.2,4.498]
[1734504264612,2.3335,214.26,214.2,4.498]
[1734504265014,2.3335,214.26,214.2,5.348]
[1734504265213,2.3334,214.27,214.2,0.85]
[1734504265517,2.56,214.29,214.2,0.85]
[1734504265813,2.3336,214.25,214.2,3.184]
[1734504266714,2.3336,214.25,214.21,2.334]
[1734504267309,2.56,214.29,214.2,0.85]
[1734504268311,4.8932,214.29,214.22,2.3338]
[1734504268519,2.56,214.29,214.2,0.85]
[1734504269114,4.893,214.3,214.2,0.85]
[1734504269311,4.893,214.3,214.25,2.3335]
[1734504269715,2.3331,214.29,214.25,2.3335]
[1734504270514,2.56,214.3,214.26,2.3334]
[1734504270719,2.3329,214.31,214.2,3.41]
[1734504271319,2.333,214.3,214.2,3.41]
[1734504271519,2.56,214.32,214.2,3.41]
[1734504271723,2.56,214.32,214.22,9.21739737]
[1734504271913,2.3329,214.31,214.2,3.41]
[1734504272114,2.3329,214.31,214.25,5.8896151]
[1734504272517,2.56,214.33,214.25,5.8896151]
[1734504272717,8.4496151,214.34,214.27,5.8896151]
[1734504273117,2.3328,214.32,214.28,2.3331]
[1734504274015,8.2224151,214.32,214.28,2.3331]
[1734504274419,2.3328,214.32,214.28,2.3331]
[1734504275317,5.8896151,214.32,214.26,2.3334]
[1734504275513,2.56,214.34,214.22,5.8896151]
[1734504275514,5.8896151,214.3,214.22,5.8896151]
[1734504276420,2.3333,214.28,214.24,2.3336]
[1734504277330,2.3333,214.28,214.24,8.2232151]
[1734504277622,2.56,214.34,214.24,5.8896151]
[1734504277827,5.8896151,214.32,214.24,5.8896151]
[1734504278127,2.333,214.3,214.24,5.8896151]
[1734504278326,5.8896151,214.32,214.24,5.8896151]
[1734504278520,2.333,214.31,214.26,5.8896151]
[1734504278725,2.333,214.31,214.22,5.70336498]
[1734504279027,2.333,214.31,214.26,5.8896151]
[1734504279222,2.333,214.31,214.27,2.3333]
[1734504279626,5.8896151,214.32,214.26,5.8896151]
[1734504279822,2.3331,214.3,214.26,2.3334]
[1734504280536,2.3332,214.29,214.26,2.3334]
[1734504281525,2.333,214.3,214.24,5.8896151]
[1734504281739,5.8896151,214.32,214.27,2.3333]
[1734504283137,2.3331,214.3,214.27,2.3333]
[1734504283534,2.5,214.29,214.12,51.61042638]
[1734504283839,5.8896151,214.17,214.06,5.60085896]
[1734504284028,2.5,214.16,214.07,5.8896151]
[1734504285428,2.3349,214.13,214.07,8.2251151]
[1734504285838,2.5,214.16,214.04,2.9936]
[1734504286040,2.3351,214.11,214.05,2.3356]
[1734504286640,2.3348,214.14,214.08,2.3354]
[1734504287240,9.21782448,214.19,214.08,2.3354]
[1734504287437,2.3349,214.13,214.08,2.3354]
[1734504288035,2.5,214.17,214.07,9.21782448]
[1734504288835,2.5,214.17,214.05,5.61846346]
[1734504289040,2.5,214.17,214.06,9.21782448]
[1734504289342,2.5,214.17,214.05,5.61846346]
[1734504289536,2.5,214.17,214.06,9.21782448]
[1734504290136,2.3347,214.15,214.09,2.3352]
[1734504290337,2.3347,214.15,214.06,9.21782448]
[1734504290932,14.94728931,214.21,214.11,2.3351]
[1734504291133,2.3345,214.17,214.11,2.3351]
[1734504291344,2.5,214.2,214.11,2.3351]
[1734504291645,2.5,214.2,214.06,9.21782448]
[1734504291646,2.3348,214.15,214.09,2.3352]
[1734504291841,2.3348,214.15,214.06,9.21782448]
[1734504293535,2.3348,214.15,214.1,2.3352]
[1734504294746,9.21782448,214.18,214.08,2.3354]
[1734504295141,9.21782448,214.18,214.1,0.85]
[1734504295346,9.21782448,214.18,214.1,3.1852]
[1734504295745,2.5,214.2,214.1,0.85]
[1734504295945,2.3344,214.17,214.12,2.3349]
[1734504296745,2.3344,214.17,214.13,2.3348]
[1734504297546,2.5,214.19,214.1,2.3877]
[1734504297547,2.3346,214.16,214.1,2.3877]
[1734504297740,2.5,214.18,214.1,2.3877]
[1734504299843,2.3348,214.14,214.11,2.3351]
[1734504300042,2.5,214.18,214.1,2.3877]
[1734504300646,2.3348,214.14,214.1,4.7229]
[1734504301053,2.5,214.18,214.1,0.85]
[1734504301054,2.335,214.12,214.1,0.85]
[1734504301345,2.5,214.13,214.1,0.85]
[1734504301743,5.62667942,214.22,214.1,0.85]
[1734504302048,9.21782448,214.2,214.1,0.85]
[1734504302950,9.21782448,214.2,214.12,2.3349]
[1734504302951,2.3346,214.16,214.12,2.3349]
[1734504303444,2.3346,214.16,214.1,0.85]
[1734504303445,2.3348,214.14,214.11,2.335]